bitfinex-derivatives/quotes_ETHF0:USTF0_20250107
["timestamp","ask_amount","ask_price","bid_price","bid_amount"]
[1736248174051,6.75391211,3655.4,3655.3,0.27356]
[1736248175349,7.02746211,3655.4,3655.3,0.27356]
[1736248175548,6.75391211,3655.4,3655.3,0.27356]
[1736248176542,7.02746211,3655.4,3655.3,0.27356]
[1736248181249,8.01579667,3655.4,3655.3,0.27356]
[1736248184355,8.01579667,3655.4,3655.3,0.70416]
[1736248185159,8.01579667,3655.4,3655.3,1.13326]
[1736248187558,7.74224667,3655.4,3655.3,1.13326]
[1736248188462,7.74224667,3655.4,3655.3,5.43188164]
[1736248189555,8.01579667,3655.4,3655.3,5.43188164]
[1736248191957,8.43809667,3655.4,3655.3,4.29862164]
[1736248193858,12.8735314,3655.4,3655.0,3.2078]
[1736248194063,1.26190456,3655.1,3655.0,3.2078]
[1736248194571,7.96689172,3655.1,3655.0,3.2078]
[1736248194965,10.11227049,3655.1,3655.0,3.2078]
[1736248195365,10.29680049,3655.1,3654.7,7.50642164]
[1736248195871,0.27359,3654.9,3654.8,0.27359]
[1736248199267,0.27359,3654.9,3654.8,1.26192456]
[1736248200571,0.27358,3655.0,3654.9,0.27358]
[1736248202472,0.27358,3655.0,3654.9,4.57441204]
[1736248205470,7.96690172,3655.1,3655.0,0.27358]
[1736248205874,7.96690172,3655.1,3655.0,0.72788]
[1736248206270,2.14537877,3655.2,3655.1,0.27357]
[1736248206472,2.14537877,3655.2,3655.1,3.93977]
[1736248207870,0.27354,3655.5,3655.1,3.6662]
[1736248208076,2.14537877,3655.7,3655.5,0.27353]
[1736248208077,0.27354,3655.6,3655.5,0.27353]
[1736248208281,0.27354,3655.6,3655.5,1.26186456]
[1736248210379,2.41890877,3655.7,3655.6,0.27353]
[1736248213079,2.14537877,3655.7,3655.6,0.27353]
[1736248213271,2.14537877,3655.7,3655.6,0.69333]
[1736248214684,2.41889877,3655.8,3655.7,0.27353]
[1736248214871,2.41889877,3655.8,3655.6,0.4198]
[1736248214872,3.13371333,3655.8,3655.6,0.4198]
[1736248215077,7.04736663,3655.7,3655.6,0.69333]
[1736248216187,8.9192154,3655.7,3655.6,0.69333]
[1736248217186,9.1927454,3655.7,3655.6,0.69333]
[1736248218089,8.9192154,3655.7,3655.6,0.69333]
[1736248218284,9.1927454,3655.7,3655.6,0.69333]
[1736248218597,9.1927454,3655.7,3655.6,1.11953]
[1736248218785,7.04736663,3655.7,3655.6,1.11953]
[1736248220080,6.77383663,3655.7,3655.6,1.11953]
[1736248220789,7.04736663,3655.7,3655.6,1.11953]
[1736248225695,0.27353,3655.7,3655.6,1.11953]
[1736248226386,2.41889877,3655.8,3655.7,0.27353]
[1736248226587,2.41889877,3655.8,3655.7,1.26186456]
[1736248227292,0.27352,3655.8,3655.7,1.26186456]
[1736248227686,0.27352,3655.8,3655.7,0.98833456]
[1736248228893,0.27352,3655.8,3655.7,1.26186456]
[1736248230695,0.27352,3655.8,3655.7,4.46966456]
[1736248234191,2.14537877,3656.1,3655.7,4.19613456]
[1736248234397,2.14537877,3656.1,3656.0,1.26183456]
[1736248234792,2.14537877,3656.1,3655.8,0.98833456]
[1736248235091,0.27351,3656.0,3655.9,0.2735]
[1736248243399,0.27351,3655.9,3655.8,4.57429115]
[1736248243696,0.73211,3655.9,3655.8,4.30078115]
[1736248243897,1.60811,3655.9,3655.8,4.57430115]
[1736248244702,1.60811,3655.9,3655.8,0.27352]
[1736248247297,2.14537877,3656.0,3655.9,0.27351]
[1736248247600,9.09062444,3656.0,3655.9,0.27351]
[1736248248304,9.36412444,3656.0,3655.9,0.27351]
[1736248249507,0.27351,3655.9,3655.8,0.70982]
[1736248249708,0.27352,3655.8,3655.7,7.78210115]
[1736248250098,0.27352,3655.8,3655.7,4.30078115]
[1736248250403,7.16983537,3655.8,3655.7,4.30078115]
[1736248251002,8.21783537,3655.8,3655.7,4.30078115]
[1736248251903,0.27355,3655.4,3655.3,3.2078]
[1736248252102,1.26188456,3655.4,3655.3,3.2078]
[1736248252304,8.00406253,3655.4,3655.3,3.2078]
[1736248253404,11.63213258,3655.4,3655.3,3.2078]
[1736248254307,12.50143258,3655.4,3655.3,3.2078]
[1736248254503,12.09090515,3655.4,3655.3,3.2078]
[1736248255812,8.87336253,3655.4,3655.3,3.2078]
[1736248256917,8.87336253,3655.4,3655.3,3.48136]
[1736248257117,11.01756018,3655.4,3655.3,3.48136]
[1736248258317,0.27356,3655.3,3655.2,0.27356]
[1736248258715,7.05234037,3655.3,3655.2,0.27356]
[1736248262810,7.05234037,3655.3,3655.2,0.72326]
[1736248264223,7.05234037,3655.3,3655.2,0.27356]
[1736248265126,7.05234037,3655.3,3655.2,0.68936]
[1736248279026,6.77878037,3655.3,3655.2,0.68936]
[1736248280620,7.05234037,3655.3,3655.2,0.68936]
[1736248281019,6.77878037,3655.3,3655.2,0.68936]
[1736248281423,6.75512692,3655.4,3655.3,0.27356]
[1736248281622,6.75512692,3655.4,3655.3,1.26189456]
[1736248281825,2.14419765,3655.5,3655.4,0.27355]
[1736248282026,2.14419765,3655.5,3655.4,0.73225]
[1736248282219,8.89932457,3655.5,3655.4,0.73225]
[1736248282724,2.14419765,3655.5,3655.4,0.73225]
[1736248282924,3.21754262,3655.6,3655.5,0.27354]
[1736248282925,2.14419765,3655.6,3655.5,0.27354]
[1736248283125,2.14419765,3655.6,3655.5,1.26187456]
[1736248283328,2.14419765,3655.6,3655.5,1.69027456]
[1736248284131,2.14419765,3655.9,3655.5,5.71751571]
[1736248284330,2.14419765,3655.9,3655.8,0.27352]
[1736248284531,8.87477384,3655.9,3655.8,0.27352]
[1736248285635,6.73057619,3655.9,3655.8,0.27352]
[1736248288341,8.87477384,3655.9,3655.8,0.27352]
[1736248291232,15.85144296,3655.9,3655.4,0.82672173]
[1736248291436,0.27357,3655.1,3654.6,12.84715376]
[1736248291638,5.51770456,3655.1,3654.6,12.84715376]
[1736248291829,12.43193339,3655.1,3654.6,12.84715376]
[1736248293437,12.43193339,3655.1,3654.3,0.8806]
[1736248293438,0.27362,3654.4,3654.3,0.8806]
[1736248293648,1.26195456,3654.4,3654.3,0.8806]
[1736248294846,4.88716825,3654.4,3654.3,0.8806]
[1736248295240,4.88716825,3654.4,3653.6,3.2078]
[1736248295241,0.68409,3654.3,3653.6,3.2078]
[1736248295441,1.26201456,3653.7,3653.6,3.2078]
[1736248296045,0.27371,3653.3,3653.2,0.9085]
[1736248300550,9.145082,3653.3,3653.2,0.4579]
[1736248301051,9.145082,3653.3,3652.3,0.27378]
[1736248301052,0.68431,3653.1,3652.3,1.18088]
[1736248301251,0.27377,3652.5,3652.3,0.9071]
[1736248301851,0.27377,3652.5,3652.3,1.18088]
[1736248302649,6.68162609,3653.0,3652.3,3.09934773]
[1736248302849,0.27376,3652.6,3652.4,0.27377]
[1736248303049,6.68162609,3653.0,3652.3,3.09934773]
[1736248303353,0.27376,3652.6,3652.5,0.27376]
[1736248303554,0.27374,3652.9,3652.4,0.27377]
[1736248303759,0.27374,3652.9,3652.3,3.37312773]
[1736248304055,6.85504398,3652.8,3652.3,3.09934773]
[1736248304246,6.85504398,3652.8,3652.3,0.9071]
[1736248304448,0.27376,3652.6,3652.5,0.27376]
[1736248304647,6.81056156,3652.9,3652.3,0.9071]
[1736248304850,0.27376,3652.6,3652.5,0.27376]
[1736248305449,6.08433773,3653.3,3652.3,0.9071]
[1736248305754,0.27376,3652.6,3652.5,0.27376]
[1736248306755,0.27376,3652.6,3652.3,0.9071]
[1736248306756,0.27376,3652.7,3652.6,0.27375]
[1736248307151,0.27376,3652.6,3652.5,0.27376]
[1736248307949,0.27376,3652.7,3652.6,0.27375]
[1736248308357,0.27376,3652.7,3652.6,3.48155]
[1736248309253,0.27376,3652.7,3652.6,3.2078]
[1736248309853,0.27376,3652.7,3652.6,3.48156]
[1736248310260,0.27375,3652.8,3652.7,0.27374]
[1736248310558,6.08433773,3653.3,3652.6,3.2078]
[1736248310759,0.27375,3652.7,3652.6,3.48156]
[1736248315262,0.27375,3652.7,3652.6,3.2078]
[1736248316563,0.27375,3652.8,3652.7,0.27375]
[1736248316956,7.19130552,3652.8,3652.7,0.27375]
[1736248317457,7.19130552,3652.8,3652.6,3.2078]
[1736248317761,0.27375,3652.7,3652.6,3.48155]
[1736248318361,0.27375,3652.7,3652.6,3.2078]
[1736248319259,0.27375,3652.7,3652.6,3.48156]
[1736248321156,7.19130552,3652.8,3652.7,0.27375]
[1736248321358,8.18099561,3652.8,3652.7,0.27375]
[1736248321967,0.27375,3652.7,3652.6,3.2078]
[1736248323266,0.27375,3652.7,3652.6,3.48156]
[1736248324364,7.90724561,3652.8,3652.6,3.2078]
[1736248324567,8.18099561,3652.8,3652.7,0.27375]
[1736248324864,7.90724561,3652.8,3652.7,0.27375]
[1736248325063,8.18098561,3652.8,3652.7,0.27375]
[1736248327259,0.27372,3653.2,3653.1,0.27371]
[1736248327459,0.98969009,3653.3,3652.6,3.2078]
[1736248327667,0.98969009,3652.8,3652.7,0.27375]
[1736248327863,0.27375,3652.7,3652.6,3.48155]
[1736248329066,0.68432,3653.1,3652.6,3.48155]
[1736248329271,0.27374,3653.0,3652.9,0.27373]
[1736248329472,7.22875603,3653.0,3652.9,0.27373]
[1736248329673,8.21844612,3653.0,3652.9,0.27373]
[1736248329875,6.95501603,3653.0,3652.9,0.27373]
[1736248330173,0.98969009,3653.2,3653.1,0.27372]
[1736248330368,1.26340009,3653.2,3653.1,0.27372]
[1736248330570,8.25544462,3653.2,3653.1,0.27372]
[1736248331167,0.27372,3653.1,3653.0,0.71473]
[1736248331364,0.27372,3653.1,3653.0,0.441]
[1736248331570,0.27373,3653.0,3652.9,0.458]
[1736248331771,1.26342009,3653.0,3652.9,0.458]
[1736248331971,1.26342009,3653.0,3652.9,0.73174]
[1736248332766,0.98969009,3653.0,3652.9,0.73174]
[1736248334675,1.26342009,3653.0,3652.9,0.73174]
[1736248334976,0.98969009,3653.0,3652.9,0.73174]
[1736248335177,0.27372,3653.2,3653.1,0.27372]
[1736248335371,0.27372,3653.1,3653.0,0.27372]
[1736248335569,1.26341009,3653.1,3653.0,0.27372]
[1736248335970,0.27373,3653.0,3652.9,0.73173]
[1736248336276,0.98969009,3653.1,3652.9,0.458]
[1736248336469,1.26342009,3653.1,3653.0,0.27373]
[1736248337671,2.14154682,3653.1,3653.0,0.27373]
[1736248338773,2.14154682,3653.2,3653.1,0.27372]
[1736248339176,8.93784129,3653.2,3653.1,0.27372]
[1736248340071,2.14154682,3653.2,3653.1,3.48152]
[1736248340276,1.44824682,3653.3,3653.2,0.27371]
[1736248341275,1.44824682,3653.3,3653.2,1.26340009]
[1736248341778,0.2737,3653.5,3653.4,0.2737]
[1736248343280,3.21458051,3653.6,3653.5,0.27369]
[1736248343576,3.21458051,3653.6,3653.5,3.89839]
[1736248344575,3.21458051,3654.0,3653.5,3.6247]
[1736248344871,0.27367,3653.9,3653.8,0.27366]
[1736248346984,0.27366,3654.0,3653.9,0.27365]
[1736248348273,2.19156993,3654.0,3653.5,3.6247]
[1736248348480,0.27368,3653.7,3653.6,0.27368]
[1736248349386,2.19156993,3654.0,3653.5,3.2078]
[1736248349573,0.27366,3653.9,3653.8,0.27366]
[1736248349776,7.13012859,3653.9,3653.8,0.27366]
[1736248350681,6.85646859,3653.9,3653.5,3.2078]
[1736248350887,0.27368,3653.7,3653.6,0.27368]
[1736248351080,0.4356,3653.8,3653.5,3.2078]
[1736248351280,0.4356,3653.8,3653.7,0.27368]
[1736248351479,0.27366,3654.1,3654.0,0.27365]
[1736248351885,6.91179884,3654.1,3654.0,0.27365]
[1736248352079,10.40002935,3654.1,3654.0,0.27365]
[1736248353288,6.91179884,3654.1,3654.0,0.27365]
[1736248353483,7.18544884,3654.1,3654.0,0.27365]
[1736248353878,3.21458051,3654.4,3654.0,3.2078]
[1736248354084,3.21458051,3654.4,3654.3,2.46519993]
[1736248354482,3.21458051,3654.5,3654.4,0.27362]
[1736248354679,2.52128051,3654.5,3654.4,3.48142]
[1736248354884,1.93791051,3654.5,3654.4,3.48142]
[1736248355085,0.68086051,3654.5,3654.4,3.48142]
[1736248355381,5.35763419,3654.9,3654.4,3.2078]
[1736248355686,5.35763419,3654.9,3654.8,0.27359]
[1736248355885,0.4615,3655.8,3655.7,0.27353]
[1736248356087,0.73502,3655.8,3655.7,0.27353]
[1736248357380,0.4615,3655.8,3655.7,0.27353]
[1736248359686,0.73502,3655.8,3655.7,0.27353]
[1736248359887,0.73502,3655.8,3655.5,3.2078]
[1736248360081,0.27353,3655.7,3655.6,0.27353]
[1736248361289,0.27353,3655.7,3655.1,3.89173]
[1736248361484,0.27353,3655.7,3655.6,0.27353]
[1736248362493,0.27353,3655.7,3655.5,0.27354]
[1736248362893,0.27353,3655.7,3655.6,0.27353]
[1736248363196,0.4615,3655.8,3655.2,0.68392]
[1736248363495,0.4615,3655.8,3655.7,0.27353]
[1736248363894,0.73502,3655.8,3655.7,0.27353]
[1736248364995,0.27353,3655.7,3655.6,0.27353]
[1736248365393,0.4615,3655.8,3655.1,3.2078]
[1736248365596,0.4615,3655.8,3655.7,0.27353]
[1736248366100,0.73502,3655.8,3655.7,0.27353]
[1736248367299,0.4615,3655.8,3655.7,0.27353]
[1736248367900,0.73502,3655.8,3655.7,0.27353]
[1736248369496,0.4615,3655.8,3655.7,0.27353]
[1736248370001,0.73502,3655.8,3655.7,0.27353]
[1736248372091,0.4615,3655.8,3655.7,0.27353]
[1736248372495,2.19156993,3656.1,3655.3,3.2078]
[1736248372701,4.35469,3656.2,3656.1,0.2735]
[1736248373209,11.16673525,3656.2,3656.1,0.2735]
[1736248373703,0.27352,3655.9,3655.8,0.27352]
[1736248374002,2.19156993,3656.0,3655.6,0.872]
[1736248374208,0.27352,3655.9,3655.8,0.27352]
[1736248374508,4.0812,3656.2,3655.6,0.872]
[1736248374710,0.27351,3656.0,3655.9,0.27351]
[1736248375208,7.06963174,3656.1,3656.0,0.2735]
[1736248375407,0.27351,3656.0,3655.9,0.27351]
[1736248376104,6.79613174,3656.1,3655.7,3.2078]
[1736248376408,0.8734,3656.2,3656.1,0.2735]
[1736248376708,0.27349,3656.2,3656.1,3.4813]
[1736248376909,0.4348,3656.3,3656.2,0.27349]
[1736248377104,0.70828,3656.3,3656.2,0.27349]
[1736248377308,0.4348,3656.3,3656.2,0.27349]
[1736248377503,0.4348,3656.3,3656.2,0.69809]
[1736248377709,0.73097,3656.5,3656.4,0.27347]
[1736248378006,7.42707982,3656.5,3656.4,0.27347]
[1736248379409,7.15360982,3656.5,3656.2,0.4246]
[1736248379611,0.27348,3656.3,3656.2,0.69809]
[1736248383615,2.19156993,3656.3,3656.1,3.2078]
[1736248383806,0.68375,3656.1,3655.1,3.2078]
[1736248384006,0.27354,3655.6,3655.5,0.27354]
[1736248385706,0.27353,3655.8,3655.7,0.27352]
[1736248386307,7.10327911,3656.0,3655.5,0.27353]
[1736248386308,0.27354,3655.6,3655.5,0.27353]
[1736248393319,0.27353,3655.7,3655.6,0.27353]
[1736248398828,6.98570399,3655.8,3655.6,0.27353]
[1736248399122,0.27353,3655.7,3655.6,0.27353]
[1736248404323,6.98570399,3655.8,3655.5,3.2078]
[1736248404532,7.25923399,3655.8,3655.7,0.27353]
[1736248405130,6.98570399,3655.8,3655.7,0.27353]
[1736248405329,7.25922399,3655.8,3655.7,0.27353]
[1736248405834,7.66969593,3655.8,3655.7,0.27353]
[1736248408023,7.39617593,3655.8,3655.7,0.27353]
[1736248409331,8.38432465,3655.8,3655.7,0.27353]
[1736248411129,7.97385271,3655.8,3655.7,0.27353]
[1736248412233,6.98570399,3655.8,3655.7,4.46947872]
[1736248413939,6.98570399,3655.8,3655.7,9.92537771]
[1736248415338,6.98570399,3655.8,3655.7,3.48133]
[1736248415840,6.98570399,3655.8,3655.7,3.92173]
[1736248416442,6.98570399,3655.8,3655.7,10.36577771]
[1736248418836,6.98570399,3655.8,3655.7,3.92173]
[1736248421643,6.98570399,3655.8,3655.7,8.22334273]
[1736248423745,6.98570399,3655.8,3655.7,5.01554273]
[1736248424541,6.98570399,3655.8,3655.7,0.71393]
[1736248427647,6.98570399,3655.8,3655.7,7.15797771]
[1736248428249,6.98570399,3655.8,3655.7,6.71757771]
[1736248428443,7.25922399,3655.8,3655.7,6.71757771]
[1736248428842,7.25922399,3655.8,3655.7,0.27353]
[1736248430051,11.93047847,3655.8,3655.7,0.27353]
[1736248434652,7.66969865,3655.8,3655.7,0.27353]
[1736248436050,10.88537046,3655.8,3655.7,0.27353]
[1736248437356,7.66969865,3655.8,3655.7,0.27353]
[1736248447576,10.88491352,3655.8,3655.7,0.27353]
[1736248448670,10.47443886,3655.8,3655.7,4.57825383]
[1736248452873,10.88490706,3655.8,3655.7,4.57825383]
[1736248453579,10.88490706,3655.8,3655.7,4.30472383]
[1736248453972,10.88490706,3655.8,3655.7,4.57825383]
[1736248454377,7.66969219,3655.8,3655.7,0.27353]
[1736248459490,0.27353,3655.7,3655.6,5.56640255]
[1736248459686,0.27353,3655.7,3655.6,4.57825383]
[1736248460579,0.69423,3655.7,3655.6,4.57825383]
[1736248460890,3.90995773,3655.7,3655.6,4.57825383]
[1736248462084,4.32043006,3655.7,3655.6,4.57825383]
[1736248467587,1.10470233,3655.7,3655.6,4.57825383]
[1736248468991,0.69423,3655.7,3655.6,4.57825383]
[1736248470193,1.10470233,3655.7,3655.6,4.57825383]
[1736248472292,5.36548215,3655.7,3655.6,4.57825383]
[1736248476097,5.36548215,3655.7,3655.6,4.30472383]
[1736248476298,5.36548215,3655.7,3655.6,4.57825383]
[1736248477697,5.09195215,3655.7,3655.6,5.56640255]
[1736248478692,4.04891744,3655.7,3655.6,1.26167872]
[1736248479404,3.62821744,3655.7,3655.6,1.26167872]
[1736248479606,0.41047233,3655.7,3655.6,7.72369237]
[1736248480403,0.41047233,3655.7,3655.6,1.26167872]
[1736248480710,3.21709488,3655.8,3655.7,0.27353]
[1736248481007,3.21709488,3655.8,3655.7,0.71453]
[1736248481608,3.49061488,3655.8,3655.7,0.71453]
[1736248481797,3.62756721,3655.8,3655.7,7.17544656]
[1736248484410,0.41047233,3655.8,3655.7,7.17544656]
[1736248485915,0.27352,3655.9,3655.8,0.27352]
[1736248486208,7.21306147,3655.9,3655.8,0.27352]
[1736248486410,7.21306147,3655.9,3655.8,1.71116872]
[1736248487112,7.6235338,3655.9,3655.8,6.01810863]
[1736248488217,7.6235338,3655.9,3655.8,5.02995991]
[1736248488909,8.61168252,3655.9,3655.8,4.30693991]
[1736248489107,9.51698252,3655.9,3655.8,4.30693991]
[1736248489908,13.77776234,3655.9,3655.8,4.30693991]
[1736248491417,0.27352,3655.8,3655.7,5.02145991]
[1736248491602,0.70932,3655.8,3655.7,5.02145991]
[1736248492711,5.4080511,3655.8,3655.7,0.71452]
[1736248494215,1.11979233,3655.8,3655.7,5.02145991]
[1736248495420,1.11979233,3655.8,3655.7,4.74793991]
[1736248495614,5.4080511,3655.8,3655.7,4.74793991]
[1736248495920,5.4080511,3655.8,3655.7,5.02146991]
[1736248497815,5.4080511,3655.8,3655.7,4.74793991]
[1736248498720,12.14076034,3655.8,3655.7,4.30693991]
[1736248499012,12.14076034,3655.8,3655.7,0.51138696]
[1736248499013,17.14076034,3655.8,3655.7,0.51138696]
[1736248499217,17.14076034,3655.8,3655.5,6.46091656]
[1736248499218,0.27353,3655.6,3655.5,6.46091656]
[1736248499420,2.03614872,3655.6,3655.3,6.46091656]
[1736248499714,1.26169872,3655.4,3655.3,6.46091656]
[1736248500111,8.57237978,3655.4,3655.3,6.46091656]
[1736248501019,13.51703772,3655.4,3654.8,0.70509]
[1736248501215,0.27359,3654.9,3654.8,0.70509]
[1736248501408,0.27359,3654.8,3654.7,0.4447]
[1736248502321,3.48721717,3654.8,3654.7,0.4447]
[1736248502523,3.21362717,3654.8,3654.7,0.7183]
[1736248503121,0.27359,3654.8,3654.7,0.7183]
[1736248503422,0.27359,3654.8,3654.7,0.4447]
[1736248503617,1.26173872,3654.8,3654.7,0.4447]
[1736248503822,0.27361,3654.6,3654.5,7.62042656]
[1736248504025,0.27361,3654.6,3654.5,7.34681656]
[1736248504221,0.27361,3654.6,3654.5,7.62043656]
[1736248504419,0.27361,3654.6,3654.5,1.15952]
[1736248505223,0.2736,3654.8,3654.7,0.2736]
[1736248505622,3.48722717,3654.8,3654.7,0.2736]
[1736248506325,3.48721717,3654.8,3654.7,0.2736]
[1736248506723,3.21362717,3654.8,3654.7,0.2736]
[1736248506926,2.14071414,3654.8,3654.7,0.2736]
[1736248507615,10.09406266,3654.8,3654.3,3.2078]
[1736248507817,1.26176872,3654.4,3654.3,3.2078]
[1736248508119,8.16983204,3654.4,3654.3,3.2078]
[1736248509729,10.3087227,3654.4,3654.3,3.2078]
[1736248510224,10.0351027,3654.4,3654.1,0.4605]
[1736248510422,1.26178872,3654.2,3654.1,0.4605]
[1736248510931,8.08220593,3654.2,3654.1,0.4605]
[1736248513626,7.09405721,3654.2,3654.1,0.4605]
[1736248514322,7.09405721,3654.2,3654.1,0.906]
[1736248514922,8.08220593,3654.2,3654.1,0.906]
[1736248521627,0.27365,3654.0,3653.9,0.27366]
[1736248522132,7.10809518,3654.0,3653.9,0.27366]
[1736248522329,0.27366,3653.9,3653.8,0.72896]
[1736248522733,7.10810518,3653.9,3653.8,0.72896]
[1736248531438,7.10810518,3653.9,3653.8,0.4553]
[1736248534039,7.10810518,3653.9,3653.8,0.72897]
[1736248534729,6.83444518,3653.9,3653.7,0.4524]
[1736248534935,0.27368,3653.7,3653.6,3.2078]
[1736248535335,8.10120683,3653.7,3653.6,3.2078]
[1736248541338,0.27371,3653.2,3653.1,3.2078]
[1736248541538,1.26185872,3653.2,3653.1,3.2078]
[1736248541735,8.21839858,3653.2,3653.1,3.2078]
[1736248542137,0.27372,3653.1,3653.0,1.16572]
[1736248542341,0.27372,3653.1,3653.0,2.15386872]
[1736248542536,6.95653986,3653.2,3653.1,0.27372]
[1736248542940,0.27371,3653.2,3653.1,0.27372]
[1736248543239,6.96561925,3653.2,3653.1,0.27372]
[1736248548841,6.69190925,3653.2,3653.1,0.27372]
[1736248549241,7.06180636,3653.3,3653.2,0.27371]
[1736248549744,2.41259066,3653.5,3653.4,0.2737]
[1736248549941,0.2737,3653.4,3653.3,0.2737]
[1736248550649,0.27371,3653.3,3653.2,1.26185872]
[1736248551148,2.13889066,3653.5,3653.2,0.98814872]
[1736248551342,2.13889066,3653.5,3653.4,1.26184872]
[1736248551543,2.13889066,3653.6,3653.5,0.27369]
[1736248551744,2.13889066,3653.6,3653.5,5.77933872]
[1736248551942,2.13889066,3653.6,3653.5,4.79119]
[1736248553150,0.27368,3653.7,3653.6,0.27368]
[1736248554149,3.12703938,3653.8,3653.5,1.3097]
[1736248554647,0.27368,3653.6,3653.5,1.58339]
[1736248555047,0.27368,3653.6,3653.5,1.3097]
[1736248555243,0.27368,3653.6,3653.5,1.58339]
[1736248556948,2.41257066,3653.7,3653.6,0.27368]
[1736248557346,2.13889066,3653.7,3653.6,0.27368]
[1736248558950,2.13889066,3653.8,3653.7,0.27368]
[1736248560048,2.13889066,3653.8,3653.7,1.26182872]
[1736248561546,0.05839066,3653.8,3653.7,1.26182872]
[1736248561746,0.72162718,3654.0,3653.9,0.27366]
[1736248562052,0.72162718,3654.3,3654.2,0.27364]
[1736248562748,0.72162718,3654.3,3654.2,1.26178872]
[1736248563347,1.26174872,3654.7,3654.6,0.27361]
[1736248564148,0.98814872,3654.7,3654.6,0.27361]
[1736248567047,7.49263623,3655.2,3654.6,0.98814872]
[1736248567256,4.55840623,3655.2,3655.1,0.27357]
[1736248567659,4.97510623,3655.2,3655.1,0.27357]
[1736248568061,4.70153623,3655.2,3655.1,0.27357]
[1736248568562,0.4167,3655.2,3655.1,0.27357]
[1736248569965,0.4167,3655.2,3654.7,4.19594872]
[1736248570262,1.26172872,3655.1,3655.0,0.27358]
[1736248570467,0.98814872,3655.1,3655.0,0.27358]
[1736248570870,1.26171872,3655.1,3655.0,0.27358]
[1736248571572,0.4167,3655.2,3654.9,0.98814872]
[1736248571769,0.4167,3655.2,3655.1,0.27357]
[1736248572166,0.4167,3655.2,3655.1,0.69497]
[1736248572563,0.98814872,3655.4,3655.1,0.4214]
[1736248572768,1.44944872,3655.4,3655.3,0.27356]
[1736248573066,8.28866406,3655.4,3655.3,0.27356]
[1736248575373,7.30051534,3655.4,3655.3,0.27356]
[1736248575563,0.4613,3655.4,3655.3,0.27356]
[1736248575763,0.4613,3655.4,3655.3,1.26170872]
[1736248575963,3.2078,3655.6,3655.5,0.27354]
[1736248577175,3.48133,3655.6,3655.5,0.27354]
[1736248577376,3.92403,3655.6,3655.5,0.27354]
[1736248578782,3.6505,3655.6,3655.5,0.27354]
[1736248579280,0.4427,3655.6,3655.5,0.27354]
[1736248579979,0.4427,3655.6,3655.5,0.71474]
[1736248587182,0.6901,3656.1,3655.5,0.71474]
[1736248587383,0.4441,3656.0,3655.9,0.27351]
[1736248587784,1.43224872,3656.0,3655.9,0.27351]
[1736248587979,0.4441,3656.0,3655.9,0.27351]
[1736248592085,0.98814872,3656.2,3656.1,0.2735]
[1736248592485,7.83627704,3656.2,3656.1,0.2735]
[1736248592989,8.10976704,3656.2,3656.1,0.2735]
[1736248593287,7.83627704,3656.2,3656.1,0.2735]
[1736248593489,8.10976704,3656.2,3656.1,0.2735]
[1736248594689,0.9035,3656.4,3656.1,0.2735]
[1736248594690,0.4461,3656.4,3656.3,0.27348]
[1736248594892,0.4461,3656.4,3656.3,1.26162872]
[1736248595189,0.4461,3656.4,3656.3,0.27348]
[1736248596788,0.4461,3656.4,3656.3,1.26162872]
[1736248599396,0.4461,3656.4,3656.3,0.27348]
[1736248602492,0.71957,3656.4,3656.3,0.27348]
[1736248605395,0.4461,3656.4,3656.3,0.27348]
[1736248605794,0.71957,3656.4,3656.3,0.27348]
[1736248606100,1.60707,3656.4,3656.3,0.27348]
[1736248606598,1.3336,3656.4,3656.3,0.27348]
[1736248608196,0.4461,3656.4,3656.3,0.27348]
[1736248608901,0.4461,3656.4,3656.3,0.71398]
[1736248609198,0.27344,3656.9,3656.8,0.27344]
[1736248609399,0.71994,3656.9,3656.8,0.27344]
[1736248609598,7.6945781,3656.9,3656.8,0.27344]
[1736248610199,7.4211381,3656.9,3656.8,0.27344]
[1736248612695,0.4465,3656.9,3656.8,0.27344]
[1736248614102,0.4465,3656.9,3656.8,2.46176621]
[1736248614302,0.9017,3657.5,3656.8,2.18832621]
[1736248614597,0.9017,3657.5,3657.4,0.2734]
[1736248614798,0.9017,3657.5,3657.4,3.4812]
[1736248615295,0.4367,3657.6,3657.5,0.27339]
[1736248615496,0.4367,3657.6,3657.5,0.71629]
[1736248631813,0.4367,3657.6,3657.5,3.92409]
[1736248635516,0.4367,3657.6,3657.5,4.91088572]
[1736248635909,0.4367,3657.6,3657.5,1.70308572]
[1736248636111,0.4367,3657.6,3657.5,4.91088572]
[1736248637308,0.4367,3657.6,3657.5,5.89768144]
[1736248640109,0.4367,3657.6,3657.5,4.91088572]
[1736248645324,0.4367,3657.6,3657.5,4.46798572]
[1736248650623,0.4367,3657.6,3657.5,1.26018572]
[1736248650822,0.4367,3657.6,3657.5,4.46798572]
[1736248651727,0.4367,3657.6,3657.5,5.45478144]
[1736248651928,0.4367,3657.6,3657.5,6.65119457]
[1736248652329,0.4367,3657.6,3657.5,5.66439885]
[1736248652529,0.4367,3657.6,3657.5,6.65119457]
[1736248654528,0.4367,3657.6,3657.5,13.11211113]
[1736248656229,0.4367,3657.6,3657.5,11.915698]
[1736248657029,0.4367,3657.6,3657.5,8.707898]
[1736248657235,0.4367,3657.6,3657.5,5.55487264]
[1736248658234,0.4367,3657.6,3657.5,1.26018572]
[1736248659632,0.4367,3657.6,3657.5,7.72110228]
[1736248660931,0.4367,3657.6,3657.5,4.46798572]
[1736248661535,0.4367,3657.6,3657.5,5.66438812]
[1736248661735,0.4367,3657.6,3657.5,4.46798572]
[1736248663638,0.4367,3657.6,3657.5,5.45478144]
[1736248664143,0.4367,3657.6,3657.5,6.65118808]
[1736248665543,0.4367,3657.6,3657.5,17.40675248]
[1736248667849,3.20330844,3657.9,3657.8,0.27337]
[1736248668043,3.20330844,3657.9,3657.8,1.26016572]
[1736248669447,3.20330844,3658.0,3657.9,0.27336]
[1736248669651,3.20330844,3658.0,3657.9,1.26015572]
[1736248670956,3.66390844,3658.0,3657.9,1.26015572]
[1736248672046,4.07410157,3658.0,3657.9,1.26015572]
[1736248672652,3.61350157,3658.0,3657.9,1.26015572]
[1736248673553,3.20330844,3658.0,3657.9,1.26015572]